bitfinex/quotes_ETHUSD_20241215
["timestamp","ask_amount","ask_price","bid_price","bid_amount"]
[1734245506162,0.8165,3877.3,3876.8,0.86026455]
[1734245506370,0.19177233,3877.2,3876.5,4.69256456]
[1734245506620,0.8165,3877.3,3876.5,4.69256456]
[1734245506621,0.19177233,3877.1,3876.6,2.15068436]
[1734245506784,0.19177233,3877.0,3876.7,2.15068436]
[1734245506964,0.8165,3877.3,3876.5,4.69256456]
[1734245507168,0.55,3877.1,3876.6,2.1503457]
[1734245507412,0.55,3876.9,3876.3,1.07844052]
[1734245507611,0.19176758,3876.8,3876.3,1.07844052]
[1734245507831,0.55,3876.7,3876.4,1.03449404]
[1734245508041,0.55,3876.7,3876.5,0.86000443]
[1734245508373,0.55,3876.7,3876.4,1.03449404]
[1734245510722,0.55,3876.7,3876.5,0.07828315]
[1734245511584,0.55,3876.7,3876.2,1.03449404]
[1734245511819,0.55,3876.7,3876.6,0.07826184]
[1734245512144,0.74155405,3876.7,3876.6,0.07826184]
[1734245512435,0.74155405,3876.7,3876.2,1.03449404]
[1734245512599,0.55,3876.7,3876.6,0.07826184]
[1734245512801,0.74151683,3876.7,3876.2,1.03449404]
[1734245513001,0.55,3876.7,3876.6,0.07826184]
[1734245513341,0.74151084,3876.7,3876.6,0.07885214]
[1734245513502,0.87633084,3876.7,3875.9,0.1613317]
[1734245513851,1.3482,3876.5,3875.9,0.1613317]
[1734245513989,0.55,3876.3,3875.9,0.1613317]
[1734245514491,0.55,3876.1,3875.9,0.1613317]
[1734245514692,0.62217072,3876.0,3875.9,0.1613317]
[1734245516456,0.23929643,3876.0,3875.9,0.1613317]
[1734245517174,1.03749643,3876.0,3875.9,0.1613317]
[1734245517336,1.53935946,3876.0,3875.9,0.1613317]
[1734245517522,1.96949338,3876.0,3875.9,0.1613317]
[1734245517862,0.23895899,3876.0,3875.9,0.1613317]
[1734245518357,0.23883491,3876.0,3875.9,0.1613317]
[1734245518730,0.38213586,3876.6,3876.0,2.57997]
[1734245518931,1.17098792,3876.5,3876.1,1.03449404]
[1734245519136,0.23885206,3876.4,3876.2,0.7914]
[1734245519456,0.55,3876.6,3876.2,0.7914]
[1734245519662,0.23884879,3876.5,3876.2,3.37123]
[1734245519822,0.23884879,3876.4,3876.2,3.37123]
[1734245520022,0.55,3876.6,3876.2,3.37123]
[1734245520236,0.23885692,3876.5,3876.2,3.37123]
[1734245520528,0.23884818,3876.4,3876.2,3.37123]
[1734245520727,0.55,3876.6,3876.2,3.37123]
[1734245521022,0.2388515,3876.5,3876.2,0.7914]
[1734245521253,0.2388515,3876.4,3876.2,0.7914]
[1734245521567,0.55,3876.6,3876.2,0.7914]
[1734245521865,0.2388461,3876.5,3876.2,0.7914]
[1734245522165,0.2388461,3876.4,3876.2,0.7914]
[1734245522508,0.55,3876.6,3876.2,0.7914]
[1734245522675,0.55,3876.6,3876.2,3.37121]
[1734245522878,0.23889149,3876.5,3876.2,0.7914]
[1734245523037,0.55,3876.6,3876.3,2.57976]
[1734245523237,0.23889748,3876.5,3876.3,2.57976]
[1734245523440,0.23891034,3876.4,3876.3,2.57976]
[1734245523855,0.23891034,3876.4,3876.3,3.61425404]
[1734245524062,0.93215709,3876.8,3876.3,3.61425404]
[1734245524063,0.55,3876.8,3876.3,1.03449404]
[1734245524366,0.23891831,3876.7,3876.4,2.57969]
[1734245524585,0.23891831,3876.6,3876.4,2.57969]
[1734245524788,0.23891831,3876.5,3876.4,2.57969]
[1734245525551,0.7982,3877.0,3876.4,2.57969]
[1734245525788,0.23899417,3876.9,3876.6,1.03449404]
[1734245526070,0.23899417,3876.8,3876.7,3.446717]
[1734245526455,0.38239396,3877.2,3876.9,2.57936]
[1734245526659,0.23906563,3877.1,3876.9,2.57936]
[1734245526971,0.7982,3877.6,3876.9,2.57936]
[1734245526972,0.23906563,3877.0,3876.9,2.57936]
[1734245528637,0.7982,3877.6,3876.9,2.57936]
[1734245528831,0.55,3877.5,3876.9,2.57936]
[1734245529133,0.7982,3877.6,3876.9,2.57936]
[1734245529134,0.55,3877.3,3876.9,2.57936]
[1734245529563,0.62188788,3877.2,3876.9,2.57936]
[1734245529750,0.23915917,3877.1,3876.9,2.57936]
[1734245529962,0.23915917,3877.0,3876.9,2.57936]
[1734245530209,0.23915917,3877.0,3876.7,0.7914]
[1734245530517,0.55,3877.3,3876.7,3.3709]
[1734245530690,0.23925866,3877.2,3876.7,3.3709]
[1734245531015,0.23925866,3877.1,3876.7,3.3709]
[1734245531215,0.23925866,3877.0,3876.7,3.3709]
[1734245531414,0.93281134,3877.3,3876.7,3.3709]
[1734245531415,0.23925866,3876.9,3876.7,3.3709]
[1734245531616,0.38281134,3877.2,3876.7,3.3709]
[1734245531818,0.38281134,3877.2,3876.8,2.57944]
[1734245532023,0.23929636,3877.1,3876.9,2.57935]
[1734245532317,0.23929636,3877.0,3876.9,2.57935]
[1734245533695,0.23929636,3877.0,3876.9,3.95091904]
[1734245533905,0.38310397,3877.6,3876.9,3.95091904]
[1734245534104,0.62253854,3877.5,3877.0,2.5793]
[1734245534353,0.62250542,3877.4,3877.0,2.5793]
[1734245534503,0.23943457,3877.3,3877.1,2.57924]
[1734245534831,0.23943457,3877.2,3877.1,2.57924]
[1734245537107,0.38310087,3877.6,3877.3,2.57911]
[1734245537442,0.62251172,3877.5,3877.1,0.7979]
[1734245537643,0.23941085,3877.4,3877.1,3.37714]
[1734245537852,0.23941085,3877.3,3877.1,3.37714]
[1734245538066,0.23941085,3877.2,3877.1,3.37714]
[1734245538464,0.55,3877.8,3877.1,3.37714]
[1734245538661,0.76036947,3877.7,3877.1,3.37714]
[1734245538809,1.17232947,3877.6,3877.1,3.37714]
[1734245539009,0.23935749,3877.5,3877.1,0.7979]
[1734245539240,0.23935749,3877.4,3877.2,2.57917]
[1734245539438,0.23935749,3877.3,3877.2,2.57917]
[1734245539846,0.55,3877.2,3876.1,1.87634052]
[1734245540158,0.55,3876.8,3876.1,0.7979]
[1734245540444,0.23935749,3876.7,3876.1,3.3778]
[1734245540629,0.23935749,3876.6,3876.1,3.3778]
[1734245540946,0.8304,3876.9,3876.3,2.57976]
[1734245541103,0.23930494,3876.8,3876.4,2.57969]
[1734245541306,0.23930494,3876.8,3876.5,0.7979]
[1734245541503,0.23930494,3876.7,3876.6,0.075396]
[1734245541744,0.23930494,3876.7,3876.5,0.7979]
[1734245542042,0.23930494,3876.6,3876.5,0.7979]
[1734245542207,1.13671008,3877.3,3876.5,0.7979]
[1734245542208,0.55,3877.1,3876.5,3.37754]
[1734245542412,0.79863795,3877.0,3876.5,3.37754]
[1734245542632,0.55,3877.1,3876.5,3.37754]
[1734245542633,0.23932877,3876.9,3876.5,3.37754]
[1734245542838,0.23932877,3876.8,3876.5,3.37754]
[1734245543154,0.55,3877.1,3876.5,0.7979]
[1734245543304,0.23931922,3877.0,3876.5,0.7979]
[1734245543508,0.23931922,3876.9,3876.5,0.7979]
[1734245543847,0.55,3877.1,3876.5,0.7979]
[1734245543848,0.23931922,3876.8,3876.5,0.7979]
[1734245544053,0.23931922,3876.7,3876.5,0.7979]
[1734245544352,0.23931922,3876.7,3876.3,1.03449404]
[1734245544353,0.23930495,3876.6,3876.3,1.03449404]
[1734245544505,0.38288792,3876.9,3876.3,1.03449404]
[1734245544707,0.8304,3876.7,3876.3,1.03449404]
[1734245544912,0.23934475,3876.6,3876.3,1.03449404]
[1734245545145,0.23934475,3876.5,3876.2,3.37773]
[1734245545474,0.8304,3876.7,3876.2,3.37773]
[1734245545669,0.23938745,3876.6,3875.9,2.7413117]
[1734245545812,0.23938745,3876.5,3875.9,2.7413117]
[1734245546010,0.23938745,3876.4,3875.9,2.7413117]
[1734245546227,0.23938745,3876.3,3875.9,2.7413117]
[1734245546427,0.23938745,3876.2,3875.9,2.7413117]
[1734245546655,0.38288792,3876.6,3875.9,2.7413117]
[1734245546851,0.38288792,3876.6,3876.0,1.03449404]
[1734245547058,0.55,3876.6,3876.0,1.03449404]
[1734245547216,0.23941957,3876.5,3876.0,1.03449404]
[1734245547419,0.23941957,3876.4,3876.0,1.03449404]
[1734245547760,0.23941957,3876.3,3876.0,1.03449404]
[1734245547969,0.93307131,3876.6,3876.0,3.61445404]
[1734245548119,0.23949803,3876.5,3876.0,3.61445404]
[1734245548320,0.23949803,3876.4,3876.0,3.61445404]
[1734245548634,0.23949803,3876.3,3876.0,3.6146627]
[1734245548866,0.93307131,3876.6,3876.0,3.6146627]
[1734245549046,0.23955027,3876.5,3876.0,3.6146627]
[1734245549241,0.23955027,3876.4,3876.0,3.6146627]
[1734245549486,0.23955027,3876.3,3876.0,3.6146627]
[1734245549656,0.93307131,3876.6,3876.0,3.6146627]
[1734245549858,0.55,3876.6,3876.0,1.0347027]
[1734245550186,4.00235337,3878.5,3876.1,3.3664]
[1734245550187,0.23955737,3876.5,3876.1,3.3664]
[1734245550345,0.23955737,3876.4,3876.1,3.3664]
[1734245550550,0.93329179,3876.8,3876.1,3.3664]
[1734245550846,0.62286653,3876.7,3876.1,3.3664]
[1734245551045,0.55,3876.8,3876.1,3.3664]
[1734245551046,0.23956405,3876.6,3876.1,3.3664]
[1734245551280,0.23956405,3876.5,3876.1,3.3664]
[1734245551585,0.55,3876.8,3876.1,3.95042684]
[1734245551787,0.23958321,3876.7,3876.1,3.95042684]
[1734245552087,0.23958321,3876.6,3876.4,2.5797]
[1734245552385,0.6899757,3877.1,3876.4,2.5797]
[1734245552584,1.17294615,3877.0,3876.4,2.5797]
[1734245552762,0.62294615,3876.9,3876.4,2.5797]
[1734245552988,0.23961243,3876.8,3876.4,2.5797]
[1734245553293,0.85664198,3877.1,3876.5,0.7865]
[1734245553473,0.62299115,3877.0,3876.5,0.7865]
[1734245553812,0.23961198,3876.9,3876.5,0.7865]
[1734245554082,0.23961198,3876.8,3876.5,0.7865]
[1734245554290,0.30664198,3877.2,3876.6,3.6142327]
[1734245554491,0.62308026,3877.1,3876.6,3.6142327]
[1734245554690,0.23964625,3877.0,3876.6,3.6142327]
[1734245554990,0.23964625,3876.9,3876.7,2.57951]
[1734245555305,0.38343486,3877.2,3876.7,2.57951]
[1734245555453,0.23965666,3877.1,3876.7,2.57951]
[1734245555645,0.23965666,3877.0,3876.7,2.57951]
[1734245555874,0.23965666,3876.9,3876.8,0.07584101]
[1734245556267,0.55,3877.3,3876.7,2.5795]
[1734245556572,0.3067594,3877.4,3876.8,0.07584101]
[1734245556746,0.55,3877.3,3876.8,0.07584101]
[1734245556947,0.55,3877.3,3876.7,2.5795]
[1734245557207,0.55,3877.4,3876.8,0.07584101]
[1734245557352,0.8567594,3877.4,3876.8,0.07584101]
[1734245557694,0.3067594,3877.3,3876.8,0.07584101]
[1734245557848,0.55,3877.4,3876.8,0.07584101]
[1734245558047,0.55,3877.4,3876.7,2.5795]
[1734245558048,0.8567594,3877.4,3876.7,2.5795]
[1734245558300,0.55,3877.4,3876.9,0.07581969]
[1734245558463,0.55,3877.4,3877.0,0.7801]
[1734245558663,0.3067594,3877.5,3877.2,2.57917]
[1734245558855,0.3067594,3877.8,3877.2,2.57917]
[1734245559184,0.3067594,3877.7,3877.2,2.57917]
[1734245559384,0.3067594,3877.8,3877.3,0.07535519]
[1734245559585,0.7857,3877.9,3877.2,2.57917]
[1734245559887,0.30676225,3877.8,3877.3,0.07535519]
[1734245560122,0.30676225,3877.7,3877.3,0.07535519]
[1734245560286,0.30676225,3877.8,3877.2,2.57917]
[1734245560491,0.7857,3877.9,3877.4,0.07533389]
[1734245560492,0.30676225,3877.7,3877.4,0.07533389]
[1734245560688,0.30676225,3877.8,3877.3,0.07535519]
[1734245560887,0.30676225,3877.7,3877.5,0.07531258]
[1734245561096,0.30676225,3877.8,3877.2,2.57917]
[1734245561395,0.30676225,3877.7,3877.2,2.57917]
[1734245561694,0.30676225,3877.8,3877.3,2.65445519]
[1734245561900,0.30676225,3878.0,3877.4,3.35911]
[1734245562202,0.30676225,3877.9,3877.5,0.07487375]
[1734245562501,0.54689674,3878.0,3877.5,0.07487375]
[1734245562675,0.30676225,3877.9,3877.5,0.07487375]
[1734245562875,0.30676225,3877.9,3877.4,0.7801]
[1734245563100,0.30676225,3877.9,3877.6,0.07485244]
[1734245563277,0.30676225,3877.9,3877.5,0.07487375]
[1734245563483,0.30676225,3877.9,3877.7,0.07483114]
[1734245563698,0.30676225,3877.9,3877.6,0.07485244]
[1734245564004,0.30676225,3877.9,3877.7,0.07483114]
[1734245564206,0.30676225,3877.9,3877.4,0.7801]
[1734245564523,0.30676225,3877.9,3877.5,0.07487375]
[1734245564826,0.30676225,3877.9,3877.2,2.57917]
[1734245565110,0.30676225,3877.9,3877.3,0.07482428]
[1734245565985,2.36306492,3878.2,3877.3,0.07482428]
[1734245566187,3.0756724,3878.1,3877.3,0.07482428]
[1734245566394,0.88761427,3878.0,3877.3,0.07482428]
[1734245566704,0.30665606,3877.9,3877.3,0.07482428]
[1734245566999,0.30665606,3878.0,3877.4,0.49078615]
[1734245567199,0.30665606,3877.9,3877.5,0.07477625]
[1734245567359,0.30665606,3878.0,3877.5,0.07477625]
[1734245567562,0.30665606,3877.9,3877.5,0.07477625]
[1734245567763,0.30665606,3878.0,3877.6,0.7801]
[1734245568000,0.30665606,3878.0,3877.7,0.07473365]
[1734245569385,0.30664494,3878.0,3877.7,0.07473365]
[1734245569794,0.55,3877.9,3877.7,0.07473365]
[1734245570009,0.85664494,3877.9,3877.0,0.7894]
[1734245570211,0.8242,3877.7,3877.1,0.81486635]
[1734245571266,0.55,3877.6,3877.1,0.07454733]
[1734245571484,1.3742,3877.4,3877.1,0.07454733]
[1734245571677,1.68084494,3877.4,3876.6,0.7894]
[1734245571882,1.68084494,3877.4,3876.4,1.03440022]
[1734245572086,1.68084494,3877.4,3876.7,0.07463258]
[1734245572287,0.55,3877.2,3876.4,1.03440022]
[1734245572491,0.55,3877.2,3876.8,0.07461127]
[1734245572714,0.55,3877.2,3876.4,1.03440022]
[1734245572923,0.55,3877.2,3876.9,0.07458995]
[1734245573088,0.55,3877.2,3876.4,1.03440022]
[1734245573295,0.55,3877.2,3877.0,0.07456864]
[1734245573475,0.55,3877.2,3876.4,1.03440022]
[1734245573675,0.55,3877.2,3877.1,0.07454733]
[1734245573878,0.55,3877.2,3876.4,1.03440022]
[1734245574290,0.55,3877.2,3876.5,0.07467521]
[1734245575604,0.55,3877.2,3876.7,1.03440022]
[1734245575790,0.8242,3877.4,3876.8,0.88000918]
[1734245576315,0.30657893,3877.3,3876.8,0.88000918]
[1734245583413,0.55,3877.6,3876.8,0.88000918]
[1734245583615,0.55,3877.6,3876.8,1.32940012]
[1734245589033,0.19224556,3877.5,3876.8,1.32940012]
[1734245589338,0.19224556,3877.4,3876.8,1.32940012]
[1734245589539,0.19224556,3877.3,3876.8,1.32940012]
[1734245589740,0.19224556,3877.2,3876.8,1.32940012]
[1734245589946,0.19224556,3877.1,3876.8,1.32940012]
[1734245590272,0.19224556,3877.0,3876.8,1.32940012]
[1734245590479,0.19224556,3876.9,3876.8,0.88000918]
[1734245592364,0.19224556,3876.9,3876.8,0.07490918]
[1734245592770,0.19224556,3876.9,3876.7,1.03440022]
[1734245592980,0.8162,3877.2,3876.8,0.07496874]
[1734245593176,0.19247304,3877.1,3876.7,1.03440022]
[1734245593492,0.19247304,3877.0,3876.8,0.07496874]
[1734245593785,0.19247304,3876.9,3876.8,0.07496874]
[1734245594003,0.8162,3877.2,3876.7,1.03440022]
[1734245594174,0.19247787,3877.1,3876.8,0.07496874]
[1734245594486,0.19248699,3877.0,3876.7,1.03440022]
[1734245594786,0.8162,3877.2,3876.8,0.07496874]
[1734245595090,0.19249553,3877.1,3876.7,1.03440022]
[1734245595293,0.19249553,3877.0,3876.9,0.07494743]
[1734245595496,0.19249553,3877.0,3876.8,0.07496874]
[1734245595798,0.8162,3877.2,3876.7,1.03440022]
[1734245595799,0.19249553,3876.9,3876.7,1.03440022]
[1734245596000,0.19249553,3876.8,3876.7,1.03440022]
[1734245597398,0.19246113,3876.8,3876.7,1.03440022]
[1734245600585,0.19246113,3876.8,3876.5,0.7653]
[1734245600780,0.19246113,3876.7,3876.6,0.07510345]
[1734245600982,0.19246113,3876.7,3876.5,1.31109807]
[1734245601181,0.19246113,3876.6,3876.5,1.31109807]
[1734245601381,0.19246113,3876.6,3876.5,2.16889315]
[1734245602085,0.8162,3877.2,3876.5,3.45559146]
[1734245602338,0.19251219,3877.1,3876.5,1.31109807]
[1734245602537,0.19251219,3877.0,3876.5,1.31109807]
[1734245602844,0.19251219,3876.9,3876.6,0.60036188]
[1734245603018,0.19251219,3876.8,3876.6,0.60036188]
[1734245603197,0.19251219,3876.7,3876.6,0.60036188]
[1734245604088,0.8162,3877.2,3876.6,0.60036188]
[1734245604409,0.8162,3877.2,3876.5,0.7653]
[1734245605832,0.8162,3877.2,3876.4,2.57968]
[1734245606049,0.8162,3877.2,3876.5,1.89215653]
[1734245606356,0.8162,3877.2,3876.5,1.03440022]
[1734245610217,0.8162,3877.2,3876.6,0.8579392]
[1734245610551,1.06858087,3877.4,3876.8,0.821]
[1734245610747,0.7846,3877.5,3876.8,1.85540022]
[1734245611053,0.7846,3877.5,3876.9,0.85788261]
[1734245611224,0.55,3877.6,3876.9,0.85788261]
[1734245611425,0.55,3877.7,3876.9,0.85788261]
[1734245611624,0.55,3877.5,3876.9,0.85788261]
[1734245611842,0.55,3877.5,3877.0,0.68183553]
[1734245612039,1.61858087,3877.7,3877.0,0.68183553]
[1734245612240,0.55,3877.5,3877.0,0.68183553]
[1734245612617,0.55,3877.7,3877.0,0.68183553]
[1734245612817,3.84641965,3877.7,3876.8,3.40043]
[1734245613028,0.55,3877.5,3876.9,0.85795128]
[1734245613553,1.61858087,3877.6,3876.9,0.85795128]
[1734245613718,0.89128176,3877.5,3876.9,0.85795128]
[1734245615620,2.22841306,3877.5,3876.9,0.85795128]
[1734245615819,1.61858087,3877.6,3877.0,0.0746553]
[1734245616139,2.22845789,3877.5,3877.0,0.0746553]
[1734245616531,1.61858087,3877.6,3876.8,3.40043]
[1734245616732,0.89126141,3877.5,3877.1,0.07468816]
[1734245617054,0.24060117,3877.4,3877.2,0.07466685]
[1734245617259,0.24060117,3877.3,3876.8,4.11311972]
[1734245617552,0.24059219,3877.2,3876.9,2.2205211]
[1734245617759,1.61858087,3877.6,3877.0,0.85831613]
[1734245618053,1.13178697,3877.5,3877.1,0.07468816]
[1734245618260,0.24058509,3877.4,3877.1,0.07468816]
[1734245618421,1.61858087,3877.6,3876.8,4.47887052]
[1734245618422,0.24058509,3877.3,3876.8,3.40043]
[1734245618623,0.24058509,3877.2,3876.9,2.22042771]
[1734245618944,1.61858087,3877.6,3876.9,2.22042771]
[1734245618945,0.55,3877.6,3877.0,0.85827877]
[1734245619160,0.24053318,3877.5,3877.1,0.85827877]
[1734245619463,0.24053318,3877.4,3877.1,0.07468816]
[1734245619622,0.24053318,3877.3,3876.8,5.19156024]
[1734245619823,0.55,3877.6,3876.9,3.00423077]
[1734245620053,0.24048506,3877.5,3877.0,2.1455413]
[1734245620421,0.24048506,3877.4,3877.1,0.07468816]
[1734245620550,0.24048506,3877.3,3877.1,0.07468816]
[1734245620744,0.55,3877.6,3877.1,0.07468816]
[1734245620932,0.24043597,3877.5,3876.8,5.19156024]
[1734245621133,0.24043597,3877.4,3877.2,0.07466685]
[1734245621473,1.06858087,3877.7,3876.9,1.81835891]
[1734245621474,0.24043597,3877.3,3876.9,1.81835891]
[1734245621641,1.85318087,3877.8,3877.0,4.72478635]
[1734245621965,0.89070826,3877.7,3877.1,2.14545432]
[1734245622128,1.13110737,3877.7,3877.1,2.14545432]
[1734245622326,0.24039911,3877.6,3877.1,2.9897097]
[1734245622568,0.24039911,3877.6,3877.2,0.85811]
[1734245622754,0.2403503,3877.5,3877.2,0.85811]
[1734245622958,0.2403503,3877.4,3877.2,0.85811]
[1734245623153,0.7846,3877.8,3877.2,0.85811]
[1734245623359,1.13095366,3877.7,3877.1,0.84425538]
[1734245623563,0.24035032,3877.6,3877.1,0.84425538]
[1734245623855,0.24035032,3877.5,3877.1,3.42346538]
[1734245624058,0.24035032,3877.5,3876.9,2.11284074]
[1734245624059,1.06858087,3877.9,3877.4,3.61344022]
[1734245624372,2.38909975,3878.1,3877.6,1.03440022]
[1734245624373,0.24031389,3877.8,3877.6,1.03440022]
[1734245624548,0.24031389,3877.7,3877.4,1.03440022]
[1734245624728,0.55,3878.0,3877.4,1.03440022]
[1734245624934,0.24032264,3877.9,3877.4,1.03440022]
[1734245625158,0.24032264,3877.8,3877.4,1.03440022]
[1734245625367,0.24032264,3877.7,3877.4,1.03440022]
[1734245625569,0.55,3878.0,3877.4,1.03440022]
[1734245625769,0.24029483,3877.9,3877.4,1.03440022]
[1734245625982,0.24029483,3877.8,3877.7,1.03440022]
[1734245626284,1.06858087,3878.6,3877.9,2.5787]
[1734245626594,0.24030325,3878.5,3878.1,1.03440022]
[1734245626735,0.24030325,3878.4,3878.1,1.03440022]
[1734245626934,0.24030325,3878.3,3878.1,1.03440022]
[1734245627135,1.85318087,3878.8,3878.1,1.03440022]
[1734245627383,0.55,3878.6,3878.1,1.03440022]
[1734245627693,0.55,3878.4,3878.1,1.03440022]
[1734245628238,0.55,3878.7,3878.1,1.03440022]
[1734245628662,0.55,3878.5,3878.1,1.03440022]
[1734245628873,0.24011858,3878.4,3878.1,1.03440022]
[1734245629344,0.7846,3878.8,3878.3,1.03440022]
[1734245629657,1.60449975,3879.2,3878.6,1.03440022]
[1734245629658,0.24005763,3878.7,3878.6,1.03440022]
[1734245629850,0.7814,3879.1,3878.6,1.10793494]
[1734245630049,0.24005727,3879.0,3878.6,1.03440022]
[1734245630255,0.24005727,3878.9,3878.6,3.8974948]
[1734245630451,1.84998087,3879.4,3878.7,0.07351343]
[1734245630672,1.12901283,3879.3,3878.7,0.07351343]
[1734245630835,0.23995463,3879.2,3878.7,0.07351343]
[1734245631041,0.23995463,3879.1,3878.7,0.07351343]
[1734245631239,0.23995463,3879.0,3878.7,0.07351343]
[1734245631491,1.81580022,3878.8,3878.7,0.07351343]
[1734245631707,1.81580022,3878.8,3877.2,1.61362641]
[1734245631708,2.5784,3878.4,3877.2,3.0]
[1734245631838,2.5784,3878.4,3876.9,2.11284074]
[1734245631839,4.14966063,3878.3,3876.9,3.61375022]
[1734245632040,0.55,3878.1,3876.9,3.61375022]
[1734245632272,0.23980063,3878.0,3877.0,0.05867271]
[1734245632476,0.23980063,3877.9,3877.0,0.05867271]
[1734245632676,0.23980063,3877.8,3877.3,1.03440022]
[1734245632878,0.55,3878.2,3877.4,0.87928748]
[1734245633080,0.55,3878.0,3877.4,0.87928748]
[1734245633387,0.23981774,3877.9,3877.4,0.87928748]
[1734245633949,0.23981774,3877.9,3877.4,0.05858748]
[1734245634644,0.23981774,3877.9,3877.5,0.05856618]
[1734245634844,0.23981774,3877.9,3877.2,2.57917]
[1734245635082,0.23981774,3877.9,3877.3,0.05860879]
[1734245635972,0.55,3878.2,3877.3,2.63770879]
[1734245636178,0.23985394,3878.1,3877.3,2.63771879]
[1734245636350,0.7814,3878.3,3877.3,2.63771879]
[1734245636351,0.23985394,3878.0,3877.3,2.63771879]
[1734245636553,0.23985394,3877.9,3877.4,0.4936246]
[1734245636799,0.55,3878.1,3877.4,0.55221208]
[1734245637094,0.23987083,3878.0,3877.4,0.05858748]
[1734245637647,0.23989192,3877.9,3877.4,0.05858748]
[1734245637874,0.23989192,3878.0,3877.4,0.05858748]
[1734245638043,0.23988538,3877.9,3877.4,0.05858748]
[1734245638248,0.55,3878.1,3877.4,0.05858748]
[1734245638493,0.23989242,3878.0,3877.4,0.05858748]
[1734245638795,0.23989242,3877.9,3877.4,0.05858748]
[1734245639088,0.23989242,3877.8,3877.1,4.43434022]
[1734245639388,0.85704123,3878.1,3877.2,0.0586301]
[1734245639548,0.23989794,3878.0,3877.2,0.0586301]
[1734245639747,0.23989794,3877.9,3877.2,0.0586301]
[1734245640047,0.23989794,3877.8,3877.2,0.0586301]
[1734245640277,0.30704123,3878.0,3877.2,0.0586301]
[1734245640585,0.23994275,3877.9,3877.2,0.0586301]
[1734245640788,0.8570877,3878.1,3877.2,0.0586301]
[1734245640950,0.23991246,3878.0,3877.2,0.0586301]
[1734245641152,0.23992252,3877.9,3877.2,0.0586301]
[1734245641383,0.23992252,3877.8,3877.2,0.0586301]
[1734245641548,0.8570877,3878.1,3877.2,0.0586301]
[1734245641749,0.23993846,3878.0,3877.2,0.0586301]
[1734245641949,0.23993846,3877.9,3877.2,0.0586301]
[1734245642150,0.23993846,3877.8,3877.2,0.0586301]
[1734245642376,0.3070877,3878.0,3877.2,0.0586301]
[1734245642563,0.23996686,3877.9,3877.2,0.0586301]
[1734245642762,0.23996686,3877.8,3877.2,0.0586301]
[1734245643049,0.3070877,3878.2,3877.2,0.0586301]
[1734245643170,0.23996666,3877.7,3877.2,0.0586301]
[1734245643496,0.3070877,3878.0,3877.2,0.0586301]
[1734245643700,0.23998886,3877.9,3877.2,0.50792713]
[1734245643999,0.23998886,3877.8,3877.2,0.50792713]
[1734245644160,0.23998886,3877.7,3877.2,0.50792713]
[1734245645394,0.3070877,3878.0,3877.2,0.50792713]
[1734245645603,0.24002487,3877.9,3877.2,0.50792713]
[1734245645806,0.24002487,3877.8,3877.2,0.50792713]
[1734245646003,0.24002487,3877.7,3877.2,0.50792713]
[1734245646209,0.8224,3878.1,3877.2,0.50792713]
[1734245646380,0.30722147,3878.0,3877.2,0.0586301]
[1734245646589,0.54723703,3877.9,3877.2,0.0586301]
[1734245646894,0.24001556,3877.8,3877.2,0.0586301]
[1734245647090,0.24001556,3877.7,3877.2,0.0586301]
[1734245647292,0.30722147,3878.0,3877.2,0.0586301]
[1734245647504,0.54725747,3877.9,3877.2,0.0586301]
[1734245647673,0.240036,3877.8,3877.2,0.0586301]
[1734245648002,0.240036,3877.7,3877.2,0.50214713]
[1734245648307,0.30722147,3878.0,3877.2,0.50214713]
[1734245648479,0.54726731,3877.9,3877.2,0.50214713]
[1734245648687,0.54726731,3877.8,3877.2,0.50214713]
[1734245648899,0.24004584,3877.7,3877.2,0.50214713]
[1734245649097,0.30722147,3877.9,3877.2,0.50214713]
[1734245649310,0.24005667,3877.8,3877.2,0.50214713]
[1734245649469,0.8224,3878.1,3877.2,0.50214713]
[1734245649669,0.8224,3878.1,3877.2,0.0586301]
[1734245649670,0.5473319,3878.0,3877.2,0.0586301]
[1734245649896,0.30727287,3877.9,3877.2,0.0586301]
[1734245650094,0.5473319,3877.8,3877.2,0.0586301]
[1734245650316,0.24005903,3877.7,3877.2,0.0586301]
[1734245650475,0.30727287,3878.0,3877.2,0.0586301]
[1734245650699,0.54734223,3877.9,3877.2,0.0586301]
[1734245650899,0.54734223,3877.8,3877.2,0.0586301]
[1734245651100,0.24006936,3877.7,3877.2,0.0586301]
[1734245651338,0.24006936,3877.6,3877.3,0.44351703]
[1734245651647,0.30727287,3877.8,3877.3,0.44351703]
[1734245651936,0.24006641,3877.7,3877.4,0.05894978]
[1734245652095,0.30727287,3877.9,3877.4,0.05894978]
[1734245652292,0.54734771,3877.8,3877.4,0.05894978]
[1734245652496,0.8224,3878.1,3877.4,0.05894978]
[1734245652691,0.54737002,3878.0,3877.4,0.05894978]
[1734245652937,0.24007457,3877.9,3877.1,3.61364022]
[1734245653093,0.54737002,3877.8,3877.2,0.43765402]
[1734245653291,0.24007457,3877.7,3877.3,0.05943614]
[1734245653532,0.30729545,3877.9,3877.2,0.43765402]
[1734245653832,0.54736993,3877.8,3877.4,0.05941483]
[1734245654131,0.24007448,3877.7,3877.5,0.05939353]
[1734245654347,0.30729545,3877.9,3877.5,0.05939353]
[1734245654637,0.54736328,3877.8,3877.2,0.43765402]
[1734245654948,0.24006783,3877.7,3877.3,0.48141942]
[1734245655250,0.8224,3878.1,3877.3,0.54085556]
[1734245655251,0.24006783,3877.6,3877.3,0.54085556]
[1734245655448,0.30729545,3877.8,3877.3,0.54085556]
[1734245655674,0.8224,3878.1,3877.3,0.05943614]
[1734245655838,0.23998738,3877.7,3877.3,0.05943614]
[1734245656155,0.30718385,3877.9,3877.4,0.05941483]
[1734245656329,0.54716304,3877.8,3877.4,0.05941483]
[1734245656535,0.23997919,3877.7,3877.1,3.61364022]
[1734245656759,0.23997919,3877.6,3877.5,0.05939353]
[1734245656926,0.30718385,3877.8,3877.2,0.43765402]
[1734245657129,0.2399673,3877.7,3877.5,0.05939893]
[1734245657323,0.30718385,3877.9,3877.2,0.43765402]
[1734245657526,0.54717593,3877.8,3877.6,0.05937763]
[1734245657845,0.54717593,3877.7,3877.1,1.03440022]
[1734245658051,2.0714923,3877.6,3876.7,0.8005]
[1734245658238,2.0714923,3877.6,3877.2,0.05749669]
[1734245658239,2.57911,3877.3,3877.2,0.05749669]
[1734245658423,0.7971,3876.5,3876.1,1.07844052]
[1734245658628,2.5796,3876.6,3875.9,0.1613317]
[1734245658629,2.57972,3876.4,3875.9,0.1613317]
[1734245658961,2.88670736,3876.3,3875.9,0.1613317]
[1734245659327,0.23981121,3876.2,3875.9,0.1613317]